fUSD/lending_fUSD_20260430
["ID","MTS","AMOUNT","RATE_DAILY","PERIOD"]
[421343929,1777478403000,283.46,0.00028164,120]
[421343930,1777478431000,500.0,7.935e-05,2]
[421343932,1777478555000,2000.0,8.219e-05,2]
[421343933,1777478568000,971.5,0.00030136,120]
[421343949,1777478685000,160.0,0.00030137,120]
[421343953,1777478710000,150.0,8.162e-05,2]
[421343952,1777478710000,150.0,8.162e-05,2]
[421343951,1777478710000,216.83912453,8.162e-05,2]
[421343950,1777478710000,150.0,8.162e-05,2]
[421343955,1777478717000,150.0,8.162e-05,2]
[421343956,1777478719000,150.0,8.162e-05,2]
[421343958,1777478727000,150.0,8.162e-05,2]
[421343959,1777478727000,150.0,8.222e-05,2]
[421343960,1777478728000,150.0,8.162e-05,2]
[421343961,1777478747000,180.43,6.05e-05,2]
[421343962,1777478757000,500.0,7.935e-05,2]
[421343966,1777478874000,357.5,7.945e-05,2]
[421343968,1777478907000,148.21912453,7.498e-05,2]
[421343967,1777478907000,2545.24087547,7.498e-05,2]
[421343969,1777478909000,166.05,8e-05,2]
[421343970,1777478912000,300.0,8.248e-05,2]
[421343971,1777478912000,300.0,8.248e-05,2]
[421343973,1777478912000,599.99,8.248e-05,2]
[421343972,1777478912000,4400.01,8.248e-05,2]
[421343974,1777478930000,4400.02,7.643e-05,2]
[421343977,1777478930000,5000.01,7.643e-05,2]
[421343976,1777478930000,5000.01,7.643e-05,2]
[421343975,1777478930000,5000.01,7.643e-05,2]
[421343978,1777478930000,5000.01,7.643e-05,2]
[421343979,1777478930000,5000.01,7.643e-05,2]
[421343982,1777478930000,5000.01,7.643e-05,2]
[421343980,1777478930000,5000.01,7.643e-05,2]
[421343983,1777478930000,5000.01,7.643e-05,2]
[421343984,1777478930000,55183.23,7.643e-05,2]
[421343981,1777478930000,5000.01,7.643e-05,2]
[421343990,1777479031000,-182.7359301,8.286e-05,2]
[421343985,1777479031000,174.3,8.219e-05,2]
[421343989,1777479031000,-150.0,8.283e-05,2]
[421343991,1777479031000,-117.2640699,8.286e-05,2]
[421343992,1777479031000,-285.48991255,8.29e-05,2]
[421343996,1777479031000,-4683.70727985,8.312e-05,2]
[421343995,1777479031000,-300.0,8.311e-05,2]
[421343994,1777479031000,-500.0,8.297e-05,2]
[421343993,1777479031000,-2500.0,8.297e-05,2]
[421343997,1777479031000,-1610.89109739,8.312e-05,2]
[421343998,1777479031000,-499.50294632,8.312e-05,2]
[421344000,1777479031000,-4816.83935,8.312e-05,2]
[421343999,1777479031000,-756.18617286,8.312e-05,2]
[421344021,1777479032000,-3209.873,8.413e-05,2]
[421344032,1777479032000,-707.64,8.413e-05,2]
[421344025,1777479032000,-466.16460953,8.413e-05,2]
[421344015,1777479032000,-7025.49,8.363e-05,2]
[421344023,1777479032000,-320.673,8.413e-05,2]
[421344016,1777479032000,-466.16460953,8.388e-05,2]
[421344020,1777479032000,-6231.3893,8.412e-05,2]
[421344029,1777479032000,-299.99,8.413e-05,2]
[421344018,1777479032000,-150.0,8.403e-05,2]
[421344027,1777479032000,-3864.25,8.413e-05,2]
[421344017,1777479032000,-205.9,8.4e-05,2]
[421344019,1777479032000,-150.0,8.411e-05,2]
[421344012,1777479032000,-150.99,8.363e-05,2]
[421344011,1777479032000,-999.99,8.363e-05,2]
[421344010,1777479032000,-9999.99,8.363e-05,2]
[421344009,1777479032000,-466.16460955,8.362e-05,2]
[421344005,1777479032000,-500.0,8.322e-05,2]
[421344006,1777479032000,-500.0,8.322e-05,2]
[421344014,1777479032000,-1054.33,8.363e-05,2]
[421344008,1777479032000,-150.0,8.343e-05,2]
[421344007,1777479032000,-500.0,8.322e-05,2]
[421344004,1777479032000,-2500.0,8.322e-05,2]
[421344003,1777479032000,-2500.0,8.322e-05,2]
[421344002,1777479032000,-2500.0,8.322e-05,2]
[421344001,1777479032000,-118.83395358,8.312e-05,2]
[421344044,1777479032000,-150.0,8.585e-05,2]
[421344013,1777479032000,-544.7,8.363e-05,2]
[421344043,1777479032000,-33104.2685,8.533e-05,2]
[421344035,1777479032000,-3210.3641016,8.413e-05,2]
[421344039,1777479032000,-500.0,8.513e-05,2]
[421344038,1777479032000,-150.0,8.464e-05,2]
[421344062,1777479032000,-82358.40493663,9.072e-05,2]
[421344059,1777479032000,-150.0,9.068e-05,2]
[421344063,1777479032000,-45367.06291043,9.072e-05,2]
[421344061,1777479032000,-150.0,9.068e-05,2]
[421344058,1777479032000,-500.0,9.053e-05,2]
[421344049,1777479032000,-150.0,8.827e-05,2]
[421344054,1777479032000,-500.0,9.053e-05,2]
[421344053,1777479032000,-150.0,9.008e-05,2]
[421344050,1777479032000,-150.0,8.887e-05,2]
[421344052,1777479032000,-150.0,8.948e-05,2]
[421344051,1777479032000,-1600.0,8.926e-05,2]
[421344055,1777479032000,-500.0,9.053e-05,2]
[421344060,1777479032000,-150.0,9.068e-05,2]
[421344047,1777479032000,-150.0,8.706e-05,2]
[421344033,1777479032000,-9999.99,8.413e-05,2]
[421344048,1777479032000,-150.0,8.766e-05,2]
[421344037,1777479032000,-9999.99,8.43e-05,2]
[421344040,1777479032000,-150.0,8.524e-05,2]
[421344042,1777479032000,-250.0,8.533e-05,2]
[421344034,1777479032000,-4734.1558984,8.413e-05,2]
[421344036,1777479032000,-200.0,8.43e-05,2]
[421344046,1777479032000,-150.0,8.645e-05,2]
[421344045,1777479032000,-150.0,8.615e-05,2]
[421344056,1777479032000,-168.04538736,9.053e-05,2]
[421344057,1777479032000,-501.25506538,9.053e-05,2]
[421344041,1777479032000,-296.84,8.533e-05,2]
[421344069,1777479037000,-444.97713449,9.111e-05,2]
[421344068,1777479037000,-15004.19345717,9.072e-05,2]
[421344089,1777479038000,-4359.22243862,9.67e-05,2]
[421344096,1777479038000,-2925.7731443,0.0001,2]
[421344091,1777479038000,-1600.0,9.918e-05,2]
[421344093,1777479038000,-1065.25116967,0.0001,2]
[421344092,1777479038000,-1676.92415731,9.939e-05,2]
[421344094,1777479038000,-2642.01942239,0.0001,2]
[421344101,1777479038000,-661.68452284,0.0001,2]
[421344105,1777479038000,-433.0,0.00010177,2]
[421344098,1777479038000,-431.33027896,0.0001,2]
[421344095,1777479038000,-2415.91940805,0.0001,2]
[421344097,1777479038000,-2670.84627614,0.0001,2]
[421344102,1777479038000,-7693.92769974,0.00010021,2]
[421344100,1777479038000,-412.37062881,0.0001,2]
[421344104,1777479038000,-255.68,0.00010027,2]
[421344090,1777479038000,-7548.79,9.67e-05,2]
[421344099,1777479038000,-880.63330489,0.0001,2]
[421344088,1777479038000,-751.10863,9.67e-05,2]
[421344072,1777479038000,-4351.12713441,9.111e-05,2]
[421344087,1777479038000,-1141.04999999,9.67e-05,2]
[421344103,1777479038000,-31479.32230026,0.00010021,2]
[421344070,1777479038000,-4555.02286551,9.111e-05,2]
[421344071,1777479038000,-300.0,9.111e-05,2]
[421344073,1777479038000,-2500.0,9.111e-05,2]
[421344074,1777479038000,-300.0,9.111e-05,2]
[421344075,1777479038000,-500.0,9.111e-05,2]
[421344076,1777479038000,-250.0,9.111e-05,2]
[421344086,1777479038000,-542.46609112,9.67e-05,2]
[421344077,1777479038000,-300.0,9.111e-05,2]
[421344078,1777479038000,-300.0,9.142e-05,2]
[421344082,1777479038000,-1000.0,9.601e-05,2]
[421344080,1777479038000,-255.0,9.252e-05,2]
[421344084,1777479038000,-738.02027781,9.67e-05,2]
[421344081,1777479038000,-609.98,9.5e-05,2]
[421344083,1777479038000,-10577.65300019,9.67e-05,2]
[421344085,1777479038000,-11890.46956227,9.67e-05,2]
[421344079,1777479038000,-2000.0,9.247e-05,2]
[421344106,1777479038000,-174.61919141,0.00010266,2]
[421344144,1777479038000,-619.19223284,0.00011571,2]
[421344111,1777479038000,-283.46,0.00010411,2]
[421344131,1777479038000,-992.09868684,0.00011301,2]
[421344141,1777479038000,-166.66,0.00011507,2]
[421344132,1777479038000,-829.67010334,0.00011301,2]
[421344133,1777479038000,-178.23120982,0.00011301,2]
[421344130,1777479038000,-166.66,0.00011288,2]
[421344142,1777479038000,-3532.0,0.00011571,2]
[421344134,1777479038000,-187.78006525,0.00011362,2]
[421344127,1777479038000,-166.66,0.00011068,2]
[421344138,1777479038000,-573.28983839,0.00011505,2]
[421344146,1777479038000,-1266.0,0.00011571,2]
[421344145,1777479038000,-1350.0,0.00011571,2]
[421344150,1777479038000,-91.14976718,0.00011602,2]
[421344148,1777479038000,-1222.658,0.000116,2]
[421344149,1777479038000,-416.0,0.00011602,2]
[421344147,1777479038000,-150.0,0.00011571,2]
[421344108,1777479038000,-279.9045709,0.00010266,2]
[421344143,1777479038000,-3.80776716,0.00011571,2]
[421344124,1777479038000,-150.0,0.00010959,2]
[421344136,1777479038000,-166.66,0.00011397,2]
[421344126,1777479038000,-3929.0,0.00011041,2]
[421344110,1777479038000,-2000.0,0.00010274,2]
[421344128,1777479038000,-166.66,0.00011178,2]
[421344113,1777479038000,-777.0,0.00010549,5]
[421344107,1777479038000,-151.56277928,0.00010266,2]
[421344117,1777479038000,-160.0,0.00010658,2]
[421344109,1777479038000,-209.40437684,0.00010266,2]
[421344112,1777479038000,-411.37440951,0.00010477,2]
[421344114,1777479038000,-2853.58311222,0.000106,2]
[421344115,1777479038000,-207.43500361,0.00010658,2]
[421344129,1777479038000,-736.0,0.00011195,2]
[421344120,1777479038000,-1600.0,0.0001091,2]
[421344118,1777479038000,-162.31979731,0.00010658,2]
[421344121,1777479038000,-250.0,0.00010944,2]
[421344122,1777479038000,-500.0,0.00010959,2]
[421344125,1777479038000,-150.0,0.00010959,2]
[421344123,1777479038000,-166.66,0.00010959,2]
[421344119,1777479038000,-181.08010149,0.00010814,2]
[421344171,1777479040000,-201.93286099,0.00012458,2]
[421344174,1777479040000,-1063.74380034,0.00012766,2]
[421344180,1777479040000,-2000.0,0.00013325,2]
[421344176,1777479040000,-199.35369797,0.000129,2]
[421344177,1777479040000,-333.63092341,0.00013006,2]
[421344178,1777479040000,-250.0,0.00013063,2]
[421344181,1777479040000,-200.0,0.00013325,2]
[421344179,1777479040000,-250.0,0.00013063,2]
[421344197,1777479040000,-1533.0,0.00013325,2]
[421344183,1777479040000,-1533.0,0.00013325,2]
[421344182,1777479040000,-151.0,0.00013325,2]
[421344185,1777479040000,-151.0,0.00013325,2]
[421344175,1777479040000,-296.83,0.000128,2]
[421344187,1777479040000,-151.0,0.00013325,2]
[421344186,1777479040000,-1533.0,0.00013325,2]
[421344196,1777479040000,-151.0,0.00013325,2]
[421344170,1777479040000,-174.3,0.00012329,2]
[421344184,1777479040000,-1533.0,0.00013325,2]
[421344173,1777479040000,-500.0,0.00012615,2]
[421344152,1777479040000,-1684.998,0.00011602,2]
[421344169,1777479040000,-2000.0,0.00012329,2]
[421344195,1777479040000,-151.0,0.00013325,2]
[421344151,1777479040000,-803.85023282,0.00011602,2]
[421344153,1777479040000,-152.0,0.00011648,7]
[421344154,1777479040000,-150.0,0.00011745,2]
[421344157,1777479040000,-241.282,0.00011745,2]
[421344162,1777479040000,-63422.4446932,0.00011889,2]
[421344155,1777479040000,-150.0,0.00011745,2]
[421344159,1777479040000,-1049.0,0.00011745,2]
[421344172,1777479040000,-2000.0,0.00012615,2]
[421344156,1777479040000,-150.0,0.00011745,2]
[421344158,1777479040000,-183.0,0.00011745,2]
[421344160,1777479040000,-14202.0306084,0.00011889,2]
[421344164,1777479040000,-853.7338032,0.00011889,2]
[421344163,1777479040000,-3485.8123893,0.00011889,2]
[421344165,1777479040000,-1600.0,0.00011902,2]
[421344166,1777479040000,-194.72792766,0.0001191,2]
[421344167,1777479040000,-1207.0,0.00012,2]
[421344168,1777479040000,-975.0,0.00012314,2]
[421344161,1777479040000,-8974.7003916,0.00011889,2]
[421344188,1777479040000,-151.0,0.00013325,2]
[421344206,1777479040000,-2216.00259765,0.00013468,2]
[421344192,1777479040000,-151.0,0.00013325,2]
[421344222,1777479040000,-500.0,0.00013698,2]
[421344216,1777479040000,-500.0,0.00013698,2]
[421344217,1777479040000,-500.0,0.00013698,2]
[421344221,1777479040000,-500.0,0.00013698,2]
[421344237,1777479040000,-500.0,0.00013698,2]
[421344235,1777479040000,-500.0,0.00013698,2]
[421344229,1777479040000,-500.0,0.00013698,2]
[421344234,1777479040000,-500.0,0.00013698,2]
[421344233,1777479040000,-500.0,0.00013698,2]
[421344226,1777479040000,-500.0,0.00013698,2]
[421344238,1777479040000,-500.0,0.00013698,2]
[421344225,1777479040000,-436.52,0.00013698,2]
[421344227,1777479040000,-500.0,0.00013698,2]
[421344231,1777479040000,-500.0,0.00013698,2]
[421344236,1777479040000,-500.0,0.00013698,2]
[421344239,1777479040000,-500.0,0.00013698,2]
[421344190,1777479040000,-151.0,0.00013325,2]
[421344223,1777479040000,-500.0,0.00013698,2]
[421344220,1777479040000,-500.0,0.00013698,2]
[421344228,1777479040000,-500.0,0.00013698,2]
[421344214,1777479040000,-500.0,0.00013698,2]
[421344189,1777479040000,-151.0,0.00013325,2]
[421344219,1777479040000,-567.82,0.00013698,2]
[421344194,1777479040000,-1189.58048992,0.00013325,2]
[421344191,1777479040000,-241.26935684,0.00013325,2]
[421344193,1777479040000,-1533.0,0.00013325,2]
[421344200,1777479040000,-2000.0,0.00013325,2]
[421344202,1777479040000,-987.0,0.00013376,5]
[421344240,1777479040000,-500.0,0.00013698,2]
[421344204,1777479040000,-1334.74102752,0.00013458,2]
[421344198,1777479040000,-151.0,0.00013325,2]
[421344208,1777479040000,-2216.00259765,0.00013532,2]
[421344207,1777479040000,-2000.0,0.00013525,2]
[421344205,1777479040000,-200.0,0.00013458,2]
[421344199,1777479040000,-169.91787475,0.00013325,2]
[421344211,1777479040000,-200.0,0.00013593,2]
[421344218,1777479040000,-540.01206261,0.00013698,2]
[421344203,1777479040000,-2216.00259765,0.00013392,2]
[421344224,1777479040000,-500.0,0.00013698,2]
[421344212,1777479040000,-500.0,0.00013698,2]
[421344270,1777479041000,-500.0,0.00013698,2]
[421344279,1777479041000,-500.0,0.00013698,2]
[421344277,1777479041000,-500.0,0.00013698,2]
[421344272,1777479041000,-500.0,0.00013698,2]
[421344275,1777479041000,-500.0,0.00013698,2]
[421344271,1777479041000,-500.0,0.00013698,2]
[421344273,1777479041000,-500.0,0.00013698,2]
[421344269,1777479041000,-500.0,0.00013698,2]
[421344280,1777479041000,-500.0,0.00013698,2]
[421344274,1777479041000,-500.0,0.00013698,2]
[421344278,1777479041000,-500.0,0.00013698,2]
[421344287,1777479041000,-318.01855139,0.00013698,2]
[421344276,1777479041000,-500.0,0.00013698,2]
[421344283,1777479041000,-500.0,0.00013698,2]
[421344282,1777479041000,-500.0,0.00013698,2]
[421344284,1777479041000,-500.0,0.00013698,2]
[421344286,1777479041000,-500.0,0.00013698,2]
[421344285,1777479041000,-500.0,0.00013698,2]
[421344288,1777479041000,-200.0,0.00013699,2]
[421344291,1777479041000,-215.0,0.00013699,2]
[421344292,1777479041000,-287.0,0.00013699,2]
[421344290,1777479041000,-215.0,0.00013699,2]
[421344268,1777479041000,-503.22722352,0.00013698,2]
[421344281,1777479041000,-390.28884283,0.00013698,2]
[421344265,1777479041000,-500.0,0.00013698,2]
[421344248,1777479041000,-500.0,0.00013698,2]
[421344264,1777479041000,-500.0,0.00013698,2]
[421344250,1777479041000,-500.0,0.00013698,2]
[421344241,1777479041000,-500.0,0.00013698,2]
[421344244,1777479041000,-500.0,0.00013698,2]
[421344245,1777479041000,-500.0,0.00013698,2]
[421344242,1777479041000,-500.0,0.00013698,2]
[421344243,1777479041000,-500.0,0.00013698,2]
[421344293,1777479041000,-325.0,0.00013699,2]
[421344247,1777479041000,-500.0,0.00013698,2]
[421344246,1777479041000,-500.0,0.00013698,2]
[421344249,1777479041000,-500.0,0.00013698,2]
[421344251,1777479041000,-500.0,0.00013698,2]
[421344267,1777479041000,-500.0,0.00013698,2]
[421344257,1777479041000,-1041.28,0.00013698,2]
[421344253,1777479041000,-1041.28,0.00013698,2]
[421344252,1777479041000,-500.0,0.00013698,2]
[421344256,1777479041000,-1041.28,0.00013698,2]
[421344254,1777479041000,-1041.28,0.00013698,2]
[421344260,1777479041000,-1041.28,0.00013698,2]
[421344258,1777479041000,-1041.28,0.00013698,2]
[421344259,1777479041000,-1041.28,0.00013698,2]
[421344262,1777479041000,-500.0,0.00013698,2]
[421344261,1777479041000,-1041.28,0.00013698,2]
[421344263,1777479041000,-500.0,0.00013698,2]
[421344266,1777479041000,-500.0,0.00013698,2]
[421344255,1777479041000,-1041.28,0.00013698,2]
[421344294,1777479041000,-639.0,0.00013699,2]
[421344289,1777479041000,-2500.0,0.00013699,2]
[421344303,1777479041000,-2000.0,0.00013725,2]
[421344324,1777479041000,-2216.00259765,0.00014076,2]
[421344327,1777479041000,-2000.0,0.00014125,2]
[421344328,1777479041000,-5888.0,0.00014128,2]
[421344337,1777479041000,-151.0,0.00014276,2]
[421344326,1777479041000,-5888.0,0.00014115,2]
[421344329,1777479041000,-2216.00259765,0.00014153,2]
[421344330,1777479041000,-2216.00259765,0.00014178,2]
[421344331,1777479041000,-5888.0,0.00014242,2]
[421344333,1777479041000,-151.0,0.00014276,2]
[421344332,1777479041000,-5888.0,0.00014276,2]
[421344335,1777479041000,-151.0,0.00014276,2]
[421344323,1777479041000,-2216.00259765,0.00014053,2]
[421344334,1777479041000,-151.0,0.00014276,2]
[421344338,1777479041000,-151.0,0.00014276,2]
[421344341,1777479041000,-5888.0,0.00014309,2]
[421344340,1777479041000,-500.0,0.00014309,2]
[421344345,1777479041000,-341.54305,0.00014354,2]
[421344346,1777479041000,-341.54305,0.00014354,2]
[421344342,1777479041000,-2000.0,0.00014325,2]
[421344347,1777479041000,-341.54305,0.00014354,2]
[421344343,1777479041000,-162.05,0.00014332,2]
[421344344,1777479041000,-341.54305,0.00014354,2]
[421344348,1777479041000,-5888.0,0.00014354,2]
[421344295,1777479041000,-151.0,0.00013699,2]
[421344339,1777479041000,-151.0,0.00014276,2]
[421344321,1777479041000,-1554.19776229,0.00014027,2]
[421344336,1777479041000,-151.0,0.00014276,2]
[421344325,1777479041000,-5888.0,0.000141,2]
[421344320,1777479041000,-5888.0,0.00014018,2]
[421344298,1777479041000,-2216.00259765,0.00013706,2]
[421344297,1777479041000,-151.0,0.00013699,2]
[421344300,1777479041000,-5888.0,0.00013711,2]
[421344299,1777479041000,-5888.0,0.0001371,2]
[421344302,1777479041000,-2216.00259765,0.00013724,2]
[421344301,1777479041000,-5888.0,0.00013717,2]
[421344312,1777479041000,-200.0,0.00013866,2]
[421344305,1777479041000,-4587.97,0.00013746,2]
[421344313,1777479041000,-2216.00259765,0.00013866,2]
[421344314,1777479041000,-2000.0,0.00013925,2]
[421344304,1777479041000,-200.0,0.00013729,2]
[421344296,1777479041000,-151.0,0.00013699,2]
[421344307,1777479041000,-1020.64,0.00013746,2]
[421344306,1777479041000,-1589.93,0.00013746,2]
[421344322,1777479041000,-2216.00259765,0.0001405,2]
[421344318,1777479041000,-5888.0,0.00014001,2]
[421344317,1777479041000,-5888.0,0.00013995,2]
[421344316,1777479041000,-2216.00259765,0.00013951,2]
[421344319,1777479041000,-5888.0,0.00014005,2]
[421344311,1777479041000,-2216.00259765,0.00013834,2]
[421344308,1777479041000,-2216.00259765,0.00013774,2]
[421344309,1777479041000,-1000.0,0.000138,2]
[421344310,1777479041000,-2216.00259765,0.00013819,2]
[421344315,1777479041000,-5888.0,0.00013938,2]
[421344386,1777479042000,-276.444942,0.00015068,2]
[421344385,1777479042000,-276.444942,0.00015068,2]
[421344388,1777479042000,-276.444942,0.00015068,2]
[421344375,1777479042000,-200.0,0.00014975,2]
[421344382,1777479042000,-429.0,0.00015,2]
[421344390,1777479042000,-6114.58,0.00015273,2]
[421344377,1777479042000,-2527.68585403,0.00015,14]
[421344380,1777479042000,-1030.0,0.00015,2]
[421344374,1777479042000,-5888.0,0.00014926,2]
[421344391,1777479042000,-151.0,0.00015285,2]
[421344381,1777479042000,-4117.0,0.00015,2]
[421344387,1777479042000,-276.444942,0.00015068,2]
[421344393,1777479042000,-2000.0,0.00015416,2]
[421344383,1777479042000,-150.0,0.00015068,2]
[421344389,1777479042000,-150.0,0.00015068,2]
[421344392,1777479042000,-1806.97528829,0.00015288,4]
[421344396,1777479042000,-250.0,0.00015616,2]
[421344394,1777479042000,-500.0,0.00015416,2]
[421344395,1777479042000,-1117.0,0.00015566,2]
[421344398,1777479042000,-224.01888329,0.0001589,2]
[421344397,1777479042000,-2853.58311217,0.00015817,2]
[421344402,1777479042000,-500.0,0.00015892,2]
[421344401,1777479042000,-1041.28,0.00015892,2]
[421344378,1777479042000,-300.0,0.00015,2]
[421344384,1777479042000,-476.01,0.00015068,2]
[421344376,1777479042000,-300.0,0.00015,2]
[421344399,1777479042000,-500.0,0.0001589,2]
[421344373,1777479042000,-5888.0,0.00014852,2]
[421344349,1777479042000,-350.0,0.0001439,2]
[421344353,1777479042000,-5888.0,0.00014488,2]
[421344351,1777479042000,-5888.0,0.00014462,2]
[421344350,1777479042000,-5888.0,0.00014452,2]
[421344352,1777479042000,-5888.0,0.00014485,2]
[421344359,1777479042000,-1266.0,0.00014571,2]
[421344356,1777479042000,-3532.0,0.00014571,2]
[421344357,1777479042000,-623.0,0.00014571,2]
[421344358,1777479042000,-1350.0,0.00014571,2]
[421344354,1777479042000,-5888.0,0.00014513,2]
[421344355,1777479042000,-5888.0,0.00014562,2]
[421344379,1777479042000,-160.0,0.00015,2]
[421344361,1777479042000,-416.0,0.00014602,2]
[421344365,1777479042000,-5888.0,0.00014717,2]
[421344366,1777479042000,-150.0,0.00014745,2]
[421344364,1777479042000,-5888.0,0.00014661,2]
[421344362,1777479042000,-895.0,0.00014602,2]
[421344363,1777479042000,-1663.0,0.00014602,2]
[421344367,1777479042000,-150.0,0.00014745,2]
[421344370,1777479042000,-283.46,0.00014849,2]
[421344368,1777479042000,-1049.0,0.00014745,2]
[421344369,1777479042000,-1117.0,0.00014788,2]
[421344372,1777479042000,-1041.28,0.00014851,2]
[421344371,1777479042000,-528.41090034,0.00014851,2]
[421344360,1777479042000,-1220.0,0.000146,2]
[421344400,1777479042000,-500.0,0.0001589,2]
[421344455,1777479042000,-500.0,0.00016164,2]
[421344405,1777479042000,-151.0,0.00015893,2]
[421344434,1777479042000,-2000.0,0.0001601,2]
[421344440,1777479042000,-293.21151923,0.00016164,2]
[421344441,1777479042000,-500.0,0.00016164,2]
[421344443,1777479042000,-500.0,0.00016164,2]
[421344442,1777479042000,-500.0,0.00016164,2]
[421344451,1777479042000,-500.0,0.00016164,2]
[421344452,1777479042000,-500.0,0.00016164,2]
[421344444,1777479042000,-500.0,0.00016164,2]
[421344445,1777479042000,-500.0,0.00016164,2]
[421344448,1777479042000,-500.0,0.00016164,2]
[421344450,1777479042000,-500.0,0.00016164,2]
[421344436,1777479042000,-2650.973345,0.0001602,2]
[421344446,1777479042000,-500.0,0.00016164,2]
[421344447,1777479042000,-500.0,0.00016164,2]
[421344453,1777479042000,-500.0,0.00016164,2]
[421344461,1777479042000,-162.05,0.00016207,2]
[421344460,1777479042000,-2000.0,0.000162,2]
[421344454,1777479042000,-500.0,0.00016164,2]
[421344458,1777479042000,-330.79009424,0.00016164,2]
[421344457,1777479042000,-500.0,0.00016164,2]
[421344456,1777479042000,-500.0,0.00016164,2]
[421344463,1777479042000,-500.0,0.00016437,2]
[421344462,1777479042000,-1117.0,0.00016386,2]
[421344459,1777479042000,-350.0,0.00016164,2]
[421344449,1777479042000,-500.0,0.00016164,2]
[421344435,1777479042000,-500.0,0.00016019,2]
[421344403,1777479042000,-346948.30408406,0.00015893,2]
[421344431,1777479042000,-2000.0,0.00016,2]
[421344439,1777479042000,-150.0,0.00016164,2]
[421344406,1777479042000,-152.039986,0.00015893,2]
[421344408,1777479042000,-151.0,0.00015893,2]
[421344407,1777479042000,-151.0,0.00015893,2]
[421344413,1777479042000,-341.54305,0.00015893,2]
[421344404,1777479042000,-151.0,0.00015893,2]
[421344415,1777479042000,-341.54305,0.00015893,2]
[421344411,1777479042000,-341.54305,0.00015893,2]
[421344410,1777479042000,-151.0,0.00015893,2]
[421344417,1777479042000,-151.0,0.00015893,2]
[421344421,1777479042000,-276.444942,0.00015893,2]
[421344426,1777479042000,-543.05,0.000159,2]
[421344409,1777479042000,-151.0,0.00015893,2]
[421344416,1777479042000,-341.54305,0.00015893,2]
[421344424,1777479042000,-2444.36,0.000159,2]
[421344437,1777479042000,-150.0,0.00016164,2]
[421344433,1777479042000,-200.0,0.00016,2]
[421344432,1777479042000,-3434.0,0.00016,2]
[421344420,1777479042000,-276.444942,0.00015893,2]
[421344429,1777479042000,-150.0,0.000159,2]
[421344438,1777479042000,-150.0,0.00016164,2]
[421344423,1777479042000,-195.13,0.000159,2]
[421344427,1777479042000,-150.0,0.000159,2]
[421344418,1777479042000,-151.0,0.00015893,2]
[421344422,1777479042000,-276.444942,0.00015893,2]
[421344419,1777479042000,-276.444942,0.00015893,2]
[421344501,1777479043000,-294.887679,0.00016438,2]
[421344505,1777479043000,-3000.0,0.00016438,2]
[421344511,1777479043000,-3000.0,0.00016438,2]
[421344500,1777479043000,-294.887679,0.00016438,2]
[421344490,1777479043000,-500.0,0.00016438,2]
[421344498,1777479043000,-294.887679,0.00016438,2]
[421344494,1777479043000,-500.0,0.00016438,2]
[421344491,1777479043000,-500.0,0.00016438,2]
[421344496,1777479043000,-294.887679,0.00016438,2]
[421344502,1777479043000,-294.887679,0.00016438,2]
[421344499,1777479043000,-294.887679,0.00016438,2]
[421344510,1777479043000,-3000.0,0.00016438,2]
[421344514,1777479043000,-500.0,0.00016438,2]
[421344506,1777479043000,-3000.0,0.00016438,2]
[421344503,1777479043000,-294.887679,0.00016438,2]
[421344508,1777479043000,-3000.0,0.00016438,2]